fUSD/lending_fUSD_20250823
["ID","MTS","AMOUNT","RATE_DAILY","PERIOD"]
[380995811,1755930707646,-400.0,0.00014794,2]
[380995812,1755930707656,-1299.81,0.00014794,2]
[380995813,1755930707666,-400.0,0.00014794,2]
[380995814,1755930707677,-400.0,0.00014794,2]
[380995815,1755930707687,-400.0,0.00014794,2]
[380995816,1755930707696,-400.0,0.00014794,2]
[380995817,1755930707707,-879.49,0.00014794,2]
[380995818,1755930707716,-400.0,0.00014794,2]
[380995819,1755930707726,-762.43,0.00014794,2]
[380995820,1755930707735,-546.74,0.00014794,2]
[380995821,1755930707745,-992.2,0.00014794,2]
[380995822,1755930707755,-578.22,0.00014794,2]
[380995823,1755930707765,-481.7,0.00014794,2]
[380995824,1755930707774,-542.83,0.00014794,2]
[380995825,1755930707783,-400.0,0.00014794,2]
[380995826,1755930707793,-717.03,0.00014794,2]
[380995827,1755930707802,-552.32,0.00014794,2]
[380995828,1755930707812,-400.0,0.00014794,2]
[380995829,1755930707822,-401.89,0.00014794,2]
[380995830,1755930707832,-459.83,0.00014794,2]
[380995831,1755930707842,-593.29,0.00014794,2]
[380995832,1755930707851,-400.0,0.00014794,2]
[380995833,1755930707861,-1000.0,0.00014794,2]
[380995834,1755930707871,-300.0,0.00014795,2]
[380995835,1755930707881,-1505.00206983,0.00014808,2]
[380995836,1755930707891,-1085.0,0.00014827,2]
[380995837,1755930707900,-1343.0,0.00014829,2]
[380995838,1755930707910,-733.0,0.00014829,2]
[380995839,1755930707920,-696.0,0.00014829,2]
[380995840,1755930707931,-736.0,0.00014829,2]
[380995841,1755930707941,-359.76179104,0.00014845,2]
[380995842,1755930707951,-160.0,0.00014845,2]
[380995843,1755930707960,-309.29654756,0.00014845,2]
[380995844,1755930707971,-200.0,0.000149,2]
[380995845,1755930707980,-221.85695829,0.000149,2]
[380995846,1755930707990,-200.0,0.000149,2]
[380995847,1755930708000,-6359.53055735,0.000149,2]
[380995848,1755930708010,-1267.19,0.00014917,2]
[380995849,1755930708019,-1000.0,0.00014917,2]
[380995850,1755930708029,-3000.0,0.00014952,2]
[380995851,1755930708039,-919.76,0.00014961,2]
[380995852,1755930708052,-151.0,0.00015,2]
[380995853,1755930708064,-151.0,0.00015,2]
[380995854,1755930708074,-1040.0,0.00015,3]
[380995855,1755930708084,-1040.0,0.00015,3]
[380995856,1755930708094,-156803.0693724,0.00015,2]
[380995857,1755930708104,-250.0,0.00015,2]
[380995858,1755930708114,-14096.31627938,0.00015,2]
[380995859,1755930708123,-200.0,0.00015049,2]
[380995860,1755930708133,-200.0,0.00015049,2]
[380995861,1755930708143,-5582.9381329,0.00015058,2]
[380995862,1755930708152,-400.0,0.00015068,2]
[380995863,1755930708162,-400.0,0.00015068,2]
[380995864,1755930708172,-400.0,0.00015068,2]
[380995865,1755930708182,-400.0,0.00015068,2]
[380995866,1755930708193,-400.0,0.00015068,2]
[380995867,1755930708203,-400.0,0.00015068,2]
[380995868,1755930708213,-400.0,0.00015068,2]
[380995869,1755930708223,-400.0,0.00015068,2]
[380995870,1755930708232,-582.01,0.00015068,2]
[380995871,1755930708242,-514.56,0.00015068,2]
[380995872,1755930708252,-704.41,0.00015068,2]
[380995873,1755930708262,-1531.46,0.00015068,2]
[380995874,1755930708279,-400.0,0.00015068,2]
[380995875,1755930708298,-400.0,0.00015068,2]
[380995876,1755930708316,-554.63,0.00015068,2]
[380995877,1755930708326,-877.84,0.00015068,2]
[380995878,1755930708336,-643.74,0.00015068,2]
[380995879,1755930708346,-400.0,0.00015068,2]
[380995880,1755930708357,-400.0,0.00015068,2]
[380995881,1755930708368,-400.0,0.00015068,2]
[380995882,1755930708378,-400.0,0.00015068,2]
[380995883,1755930708387,-400.0,0.00015068,2]
[380995884,1755930708397,-572.24,0.00015068,2]
[380995885,1755930708407,-400.0,0.00015068,2]
[380995886,1755930708416,-400.0,0.00015068,2]
[380995887,1755930708426,-400.0,0.00015068,2]
[380995888,1755930708436,-400.0,0.00015068,2]
[380995889,1755930708446,-743.91,0.00015068,2]
[380995890,1755930708456,-526.46,0.00015068,2]
[380995891,1755930708466,-400.0,0.00015068,2]
[380995892,1755930708476,-400.0,0.00015068,2]
[380995893,1755930708486,-400.0,0.00015068,2]
[380995894,1755930708495,-400.0,0.00015068,2]
[380995895,1755930708506,-400.0,0.00015068,2]
[380995896,1755930708515,-400.0,0.00015068,2]
[380995897,1755930708525,-400.0,0.00015068,2]
[380995898,1755930708534,-749.52,0.00015068,2]
[380995899,1755930708544,-400.0,0.00015068,2]
[380995900,1755930708554,-400.0,0.00015068,2]
[380995901,1755930708564,-540.59,0.00015068,2]
[380995902,1755930708575,-410.49,0.00015068,2]
[380995903,1755930708584,-400.0,0.00015068,2]
[380995904,1755930708594,-493.14,0.00015068,2]
[380995905,1755930708603,-218.87712768,0.00015068,2]
[380995906,1755930708612,-920.84,0.00015068,2]
[380995907,1755930708622,-151.07205188,0.00015068,2]
[380995908,1755930708632,-566.63,0.00015068,2]
[380995909,1755930708641,-400.0,0.00015068,2]
[380995910,1755930708651,-432.17,0.00015068,2]
[380995911,1755930708660,-400.0,0.00015068,2]
[380995912,1755930708670,-400.0,0.00015068,2]
[380995913,1755930708679,-740.84,0.00015068,2]
[380995914,1755930708689,-783.8,0.00015068,2]
[380995915,1755930708699,-604.31,0.00015068,2]
[380995916,1755930708708,-1133.06,0.00015068,2]
[380995917,1755930708718,-400.0,0.00015068,2]
[380995918,1755930708728,-517.07,0.00015068,2]
[380995919,1755930708737,-495.74,0.00015068,2]
[380995920,1755930708747,-400.0,0.00015068,2]
[380995921,1755930708756,-413.56,0.00015068,2]
[380995922,1755930708766,-400.0,0.00015068,2]
[380995923,1755930708776,-400.0,0.00015068,2]
[380995924,1755930708785,-400.0,0.00015068,2]
[380995925,1755930708795,-400.0,0.00015068,2]
[380995926,1755930708805,-400.0,0.00015068,2]
[380995927,1755930708815,-400.0,0.00015068,2]
[380995928,1755930708824,-696.19,0.00015068,2]
[380995929,1755930708834,-448.63,0.00015068,2]
[380995930,1755930708843,-409.77,0.00015068,2]
[380995931,1755930708853,-400.0,0.00015068,2]
[380995932,1755930708862,-400.0,0.00015068,2]
[380995933,1755930708872,-400.0,0.00015068,2]
[380995934,1755930708882,-400.0,0.00015068,2]
[380995935,1755930708891,-741.34,0.00015068,2]
[380995936,1755930708901,-428.59,0.00015068,2]
[380995937,1755930708910,-654.73,0.00015068,2]
[380995938,1755930708920,-412.9,0.00015068,2]
[380995939,1755930708931,-400.0,0.00015068,2]
[380995940,1755930708942,-773.01,0.00015068,2]
[380995941,1755930708952,-400.0,0.00015068,2]
[380995942,1755930708961,-400.0,0.00015068,2]
[380995943,1755930708972,-439.05,0.00015068,2]
[380995944,1755930708982,-400.0,0.00015068,2]
[380995945,1755930708992,-805.82,0.00015068,2]
[380995946,1755930709003,-400.0,0.00015068,2]
[380995947,1755930709012,-400.0,0.00015068,2]
[380995948,1755930709022,-407.07,0.00015068,2]
[380995949,1755930709032,-733.47,0.00015068,2]
[380995950,1755930709042,-400.0,0.00015068,2]
[380995951,1755930709051,-400.28,0.00015068,2]
[380995952,1755930709061,-432.84,0.00015068,2]
[380995953,1755930709070,-834.46,0.00015068,2]
[380995954,1755930709080,-400.0,0.00015068,2]
[380995955,1755930709090,-400.0,0.00015068,2]
[380995956,1755930709100,-400.0,0.00015068,2]
[380995957,1755930709109,-728.67,0.00015068,2]
[380995958,1755930709119,-400.0,0.00015068,2]
[380995959,1755930709128,-400.0,0.00015068,2]
[380995960,1755930709138,-491.05,0.00015068,2]
[380995961,1755930709148,-400.0,0.00015068,2]
[380995962,1755930709158,-482.83,0.00015068,2]
[380995963,1755930709168,-426.08,0.00015068,2]
[380995964,1755930709178,-718.23,0.00015068,2]
[380995965,1755930709188,-400.0,0.00015068,2]
[380995966,1755930709198,-400.0,0.00015068,2]
[380995967,1755930709208,-414.75,0.00015068,2]
[380995968,1755930709218,-730.88,0.00015068,2]
[380995969,1755930709228,-525.23,0.00015068,2]
[380995970,1755930709238,-400.0,0.00015068,2]
[380995971,1755930709248,-400.0,0.00015068,2]
[380995972,1755930709257,-656.34,0.00015068,2]
[380995973,1755930709267,-861.42,0.00015068,2]
[380995974,1755930709278,-400.0,0.00015068,2]
[380995975,1755930709290,-400.0,0.00015068,2]
[380995976,1755930709300,-628.73,0.00015068,2]
[380995977,1755930709310,-775.38,0.00015068,2]
[380995978,1755930709320,-400.0,0.00015068,2]
[380995979,1755930709332,-400.0,0.00015068,2]
[380995980,1755930709342,-404.23,0.00015068,2]
[380995981,1755930709352,-713.07,0.00015068,2]
[380995982,1755930709363,-452.56,0.00015068,2]
[380995983,1755930709372,-674.32,0.00015068,2]
[380995984,1755930709382,-400.0,0.00015068,2]
[380995985,1755930709392,-693.74,0.00015068,2]
[380995986,1755930709402,-400.0,0.00015068,2]
[380995987,1755930709411,-460.3,0.00015068,2]
[380995988,1755930709421,-400.0,0.00015068,2]
[380995989,1755930709432,-306.96789233,0.00015068,2]
[380995990,1755930709442,-400.0,0.00015068,2]
[380995991,1755930709452,-400.0,0.00015068,2]
[380995992,1755930709461,-400.0,0.00015068,2]
[380995993,1755930709471,-400.0,0.00015068,2]
[380995994,1755930709480,-400.0,0.00015068,2]
[380995995,1755930709489,-651.66,0.00015068,2]
[380995996,1755930709499,-490.04,0.00015068,2]
[380995997,1755930709508,-423.85,0.00015068,2]
[380995998,1755930709518,-597.2,0.00015068,2]
[380995999,1755930709528,-655.44,0.00015068,2]
[380996000,1755930709538,-400.0,0.00015068,2]
[380996001,1755930709547,-400.0,0.00015068,2]
[380996002,1755930709557,-400.0,0.00015068,2]
[380996003,1755930709567,-400.0,0.00015068,2]
[380996004,1755930709576,-1022.82,0.00015068,2]
[380996005,1755930709586,-400.0,0.00015068,2]
[380996006,1755930709596,-470.46,0.00015068,2]
[380996007,1755930709609,-400.0,0.00015068,2]
[380996008,1755930709623,-444.53,0.00015068,2]
[380996009,1755930709632,-400.0,0.00015068,2]
[380996010,1755930709642,-400.0,0.00015068,2]
[380996011,1755930709652,-451.36,0.00015068,2]
[380996012,1755930709669,-400.0,0.00015068,2]
[380996013,1755930709680,-649.5,0.00015068,2]
[380996014,1755930709690,-636.13,0.00015068,2]
[380996015,1755930709700,-400.0,0.00015068,2]
[380996016,1755930709709,-480.27,0.00015068,2]
[380996017,1755930709718,-400.0,0.00015068,2]
[380996018,1755930709728,-517.49,0.00015068,2]
[380996019,1755930709738,-600.17,0.00015068,2]
[380996020,1755930709748,-466.17,0.00015068,2]
[380996021,1755930709758,-540.76,0.00015068,2]
[380996022,1755930709767,-400.0,0.00015068,2]
[380996023,1755930709777,-400.0,0.00015068,2]
[380996024,1755930709787,-753.31,0.00015068,2]
[380996025,1755930709797,-404.06,0.00015068,2]
[380996026,1755930709807,-597.64,0.00015068,2]
[380996027,1755930709817,-458.82,0.00015068,2]
[380996028,1755930709830,-404.41,0.00015068,2]
[380996029,1755930709842,-400.0,0.00015068,2]
[380996030,1755930709852,-400.0,0.00015068,2]
[380996031,1755930709861,-400.0,0.00015068,2]
[380996032,1755930709871,-420.73,0.00015068,2]
[380996033,1755930709880,-400.0,0.00015068,2]
[380996034,1755930709890,-400.0,0.00015068,2]
[380996035,1755930709900,-400.0,0.00015068,2]
[380996036,1755930709909,-898.28,0.00015068,2]
[380996037,1755930709919,-400.0,0.00015068,2]
[380996038,1755930709929,-400.0,0.00015068,2]
[380996039,1755930709939,-433.34,0.00015068,2]
[380996040,1755930709949,-400.0,0.00015068,2]
[380996041,1755930709959,-813.43,0.00015068,2]
[380996042,1755930709969,-152.259471,0.00015068,2]
[380996043,1755930709979,-400.0,0.00015068,2]
[380996044,1755930709989,-400.0,0.00015068,2]
[380996045,1755930710001,-276.8763747,0.00015068,2]
[380996046,1755930710011,-400.0,0.00015068,2]
[380996047,1755930710021,-400.0,0.00015068,2]
[380996048,1755930710030,-589.73,0.00015068,2]
[380996049,1755930710040,-400.0,0.00015068,2]
[380996050,1755930710049,-530.1,0.00015068,2]
[380996051,1755930710060,-683.39,0.00015068,2]
[380996052,1755930710070,-400.0,0.00015068,2]
[380996053,1755930710082,-643.13,0.00015068,2]
[380996054,1755930710093,-484.79,0.00015068,2]
[380996055,1755930710103,-400.0,0.00015068,2]
[380996056,1755930710114,-400.0,0.00015068,2]
[380996057,1755930710124,-927.72,0.00015068,2]
[380996058,1755930710133,-400.0,0.00015068,2]
[380996059,1755930710143,-558.89,0.00015068,2]
[380996060,1755930710152,-417.61,0.00015068,2]
[380996061,1755930710162,-400.0,0.00015068,2]
[380996062,1755930710173,-433.09,0.00015068,2]
[380996063,1755930710183,-254.304402,0.00015068,2]
[380996064,1755930710193,-460.41,0.00015068,2]
[380996065,1755930710203,-400.0,0.00015068,2]
[380996066,1755930710212,-463.42,0.00015068,2]
[380996067,1755930710222,-400.13,0.00015068,2]
[380996068,1755930710232,-473.4,0.00015068,2]
[380996069,1755930710242,-400.0,0.00015068,2]
[380996070,1755930710252,-400.0,0.00015068,2]
[380996071,1755930710261,-400.0,0.00015068,2]
[380996072,1755930710271,-537.84,0.00015068,2]
[380996073,1755930710281,-598.61,0.00015068,2]
[380996074,1755930710295,-659.98,0.00015068,2]
[380996075,1755930710304,-400.0,0.00015068,2]
[380996076,1755930710314,-400.0,0.00015068,2]
[380996077,1755930710324,-400.0,0.00015068,2]
[380996078,1755930710536,-559.14,0.00015068,2]
[380996079,1755930710572,-666.69,0.00015068,2]
[380996080,1755930710582,-400.0,0.00015068,2]
[380996081,1755930710591,-1062.126313,0.00015068,2]
[380996082,1755930710600,-549.63,0.00015068,2]
[380996083,1755930710610,-551.78,0.00015068,2]
[380996084,1755930710619,-400.0,0.00015068,2]
[380996085,1755930710629,-500.48997015,0.00015068,2]
[380996086,1755930710639,-670.71,0.00015068,2]
[380996087,1755930710648,-488.75,0.00015068,2]
[380996088,1755930710657,-504.46,0.00015068,2]
[380996089,1755930710667,-498.06,0.00015068,2]
[380996090,1755930710678,-1574.58,0.00015068,2]
[380996091,1755930710687,-523.65,0.00015068,2]
[380996092,1755930710697,-690.06,0.00015068,2]
[380996093,1755930710707,-483.37,0.00015068,2]
[380996094,1755930710717,-906.04,0.00015068,2]
[380996095,1755930710726,-702.42,0.00015068,2]
[380996096,1755930710736,-478.28,0.00015068,2]
[380996097,1755930710746,-400.0,0.00015068,2]
[380996098,1755930710755,-463.08,0.00015068,2]
[380996099,1755930710765,-400.0,0.00015068,2]
[380996100,1755930710775,-896.65,0.00015068,2]
[380996101,1755930710785,-485.14,0.00015068,2]
[380996102,1755930710794,-664.4,0.00015068,2]
[380996103,1755930710804,-463.63,0.00015068,2]
[380996104,1755930710813,-4517.39,0.00015068,2]
[380996105,1755930710822,-400.0,0.00015068,2]
[380996106,1755930710832,-400.46,0.00015068,2]
[380996107,1755930710841,-522.33,0.00015068,2]
[380996108,1755930710851,-597.16,0.00015068,2]
[380996109,1755930710869,-634.29,0.00015068,2]
[380996110,1755930710879,-730.43,0.00015068,2]
[380996111,1755930710888,-400.0,0.00015068,2]
[380996112,1755930710898,-777.56,0.00015068,2]
[380996113,1755930710907,-400.0,0.00015068,2]
[380996114,1755930710917,-406.13,0.00015068,2]
[380996115,1755930710926,-585.18,0.00015068,2]
[380996116,1755930710936,-400.0,0.00015068,2]
[380996117,1755930710947,-400.0,0.00015068,2]
[380996118,1755930710957,-406.67,0.00015068,2]
[380996119,1755930710967,-400.0,0.00015068,2]
[380996120,1755930710976,-629.89,0.00015068,2]
[380996121,1755930710986,-820.56,0.00015068,2]
[380996122,1755930710996,-654.77,0.00015068,2]
[380996123,1755930711005,-677.66,0.00015068,2]
[380996124,1755930711015,-400.0,0.00015068,2]
[380996125,1755930711025,-400.0,0.00015068,2]
[380996126,1755930711035,-504.2,0.00015068,2]
[380996127,1755930711044,-700.52,0.00015068,2]
[380996128,1755930711054,-400.0,0.00015068,2]
[380996129,1755930711063,-522.25,0.00015068,2]
[380996130,1755930711073,-541.83,0.00015068,2]
[380996131,1755930711083,-924.13,0.00015068,2]
[380996132,1755930711092,-400.0,0.00015068,2]
[380996133,1755930711101,-626.52,0.00015068,2]
[380996134,1755930711111,-983.52,0.00015068,2]
[380996135,1755930711120,-400.0,0.00015068,2]
[380996136,1755930711130,-534.72,0.00015068,2]
[380996137,1755930711139,-400.0,0.00015068,2]
[380996138,1755930711149,-400.0,0.00015068,2]
[380996139,1755930711159,-463.0,0.00015068,2]
[380996140,1755930711168,-810.94,0.00015068,2]
[380996141,1755930711179,-632.58,0.00015068,2]
[380996142,1755930711189,-1018.11,0.00015068,2]
[380996143,1755930711198,-459.77,0.00015068,2]
[380996144,1755930711207,-400.0,0.00015068,2]
[380996145,1755930711217,-400.0,0.00015068,2]
[380996146,1755930711226,-400.0,0.00015068,2]
[380996147,1755930711237,-765.63,0.00015068,2]
[380996148,1755930711246,-814.39,0.00015068,2]
[380996149,1755930711256,-506.42,0.00015068,2]
[380996150,1755930711266,-400.0,0.00015068,2]
[380996151,1755930711275,-464.59,0.00015068,2]
[380996152,1755930711288,-353.70920899,0.00015068,2]
[380996153,1755930711297,-400.0,0.00015068,2]
[380996154,1755930711307,-744.29,0.00015068,2]
[380996155,1755930711316,-707.25,0.00015068,2]
[380996156,1755930711327,-400.0,0.00015068,2]
[380996157,1755930711336,-715.14,0.00015068,2]
[380996158,1755930711346,-414.09,0.00015068,2]
[380996159,1755930711359,-1000.0,0.00015068,2]
[380996160,1755930711368,-738.62,0.00015068,2]
[380996161,1755930711378,-400.0,0.00015068,2]
[380996162,1755930711388,-716.85,0.00015068,2]
[380996163,1755930711398,-802.16,0.00015068,2]
[380996164,1755930711407,-400.0,0.00015068,2]
[380996165,1755930711418,-632.2,0.00015068,2]
[380996166,1755930711429,-933.05,0.00015068,2]
[380996167,1755930711438,-400.0,0.00015068,2]
[380996168,1755930711449,-667.21,0.00015068,2]
[380996169,1755930711460,-841.3,0.00015068,2]
[380996170,1755930711470,-400.0,0.00015068,2]
[380996171,1755930711480,-400.0,0.00015068,2]
[380996172,1755930711489,-400.0,0.00015068,2]
[380996173,1755930711499,-678.61,0.00015068,2]
[380996174,1755930711509,-400.0,0.00015068,2]
[380996175,1755930711518,-449.99,0.00015068,2]
[380996176,1755930711528,-430.74,0.00015068,2]
[380996177,1755930711538,-519.22,0.00015068,2]
[380996178,1755930711547,-753.87,0.00015068,2]
[380996179,1755930711557,-578.08,0.00015068,2]
[380996180,1755930711567,-400.0,0.00015068,2]
[380996181,1755930711577,-762.2,0.00015068,2]
[380996182,1755930711587,-552.89,0.00015068,2]
[380996183,1755930711597,-400.0,0.00015068,2]
[380996184,1755930711606,-1130.07,0.00015068,2]
[380996185,1755930711616,-400.0,0.00015068,2]
[380996186,1755930711626,-756.24,0.00015068,2]
[380996187,1755930711635,-400.0,0.00015068,2]
[380996188,1755930711645,-400.0,0.00015068,2]
[380996189,1755930711654,-832.04,0.00015068,2]
[380996190,1755930711664,-734.03,0.00015068,2]
[380996191,1755930711673,-881.58,0.00015068,2]
[380996192,1755930711683,-607.46,0.00015068,2]
[380996193,1755930711693,-403.96,0.00015068,2]
[380996194,1755930711703,-1082.64,0.00015068,2]
[380996195,1755930711713,-641.12,0.00015068,2]
[380996196,1755930711722,-400.0,0.00015068,2]
[380996197,1755930711732,-400.0,0.00015068,2]
[380996198,1755930711742,-711.56,0.00015068,2]
[380996199,1755930711751,-400.0,0.00015068,2]
[380996200,1755930711761,-400.0,0.00015068,2]
[380996201,1755930711771,-774.36,0.00015068,2]
[380996202,1755930711781,-744.18,0.00015068,2]
[380996203,1755930711791,-400.0,0.00015068,2]
[380996204,1755930711800,-472.39,0.00015068,2]
[380996205,1755930711810,-400.0,0.00015068,2]
[380996206,1755930711819,-541.28,0.00015068,2]
[380996207,1755930711829,-791.97,0.00015068,2]
[380996208,1755930711839,-976.58,0.00015068,2]
[380996209,1755930711849,-411.91,0.00015068,2]
[380996210,1755930711859,-621.35,0.00015068,2]
[380996211,1755930711870,-690.96,0.00015068,2]
[380996212,1755930711881,-602.8,0.00015068,2]
[380996213,1755930711891,-905.63,0.00015068,2]
[380996214,1755930711902,-433.28,0.00015068,2]
[380996215,1755930711912,-893.46,0.00015068,2]
[380996216,1755930711922,-400.0,0.00015068,2]
[380996217,1755930711936,-402.28519894,0.00015068,2]
[380996218,1755930711946,-664.51,0.00015068,2]
[380996219,1755930711956,-400.0,0.00015068,2]
[380996220,1755930711966,-610.58,0.00015068,2]
[380996221,1755930711976,-400.0,0.00015068,2]
[380996222,1755930711986,-975.83,0.00015068,2]
[380996223,1755930711996,-401.11983793,0.00015068,2]
[380996224,1755930712006,-520.12,0.00015068,2]
[380996225,1755930712016,-567.16,0.00015068,2]
[380996226,1755930712025,-437.71,0.00015068,2]
[380996227,1755930712036,-591.76,0.00015068,2]
[380996228,1755930712045,-629.55,0.00015068,2]
[380996229,1755930712055,-400.0,0.00015068,2]
[380996230,1755930712065,-707.96,0.00015068,2]
[380996231,1755930712075,-976.57,0.00015068,2]
[380996232,1755930712085,-548.63,0.00015068,2]
[380996233,1755930712094,-400.0,0.00015068,2]
[380996234,1755930712104,-696.63,0.00015068,2]
[380996235,1755930712114,-548.08,0.00015068,2]
[380996236,1755930712124,-421.64,0.00015068,2]
[380996237,1755930712134,-400.0,0.00015068,2]
[380996238,1755930712144,-1327.74,0.00015068,2]
[380996239,1755930712153,-408.25,0.00015068,2]
[380996240,1755930712164,-666.95,0.00015068,2]
[380996241,1755930712174,-400.0,0.00015068,2]
[380996242,1755930712185,-400.0,0.00015068,2]
[380996243,1755930712194,-400.0,0.00015068,2]
[380996244,1755930712204,-478.81,0.00015068,2]
[380996245,1755930712214,-400.0,0.00015068,2]
[380996246,1755930712224,-400.0,0.00015068,2]
[380996247,1755930712234,-475.87,0.00015068,2]
[380996248,1755930712243,-752.44,0.00015068,2]
[380996249,1755930712253,-553.32,0.00015068,2]
[380996250,1755930712262,-414.48,0.00015068,2]
[380996251,1755930712272,-598.85,0.00015068,2]
[380996252,1755930712283,-400.0,0.00015068,2]
[380996253,1755930712296,-418.3,0.00015068,2]
[380996254,1755930712306,-400.0,0.00015068,2]
[380996255,1755930712316,-590.73,0.00015068,2]
[380996256,1755930712327,-558.79,0.00015068,2]
[380996257,1755930712337,-977.36,0.00015068,2]
[380996258,1755930712346,-334.55629236,0.00015068,2]
[380996259,1755930712356,-400.0,0.00015068,2]
[380996260,1755930712367,-359.52104577,0.00015068,2]
[380996261,1755930712377,-400.0,0.00015068,2]
[380996262,1755930712386,-400.0,0.00015068,2]
[380996263,1755930712396,-400.0,0.00015068,2]
[380996264,1755930712406,-400.0,0.00015068,2]
[380996265,1755930712415,-1058.0,0.00015068,2]
[380996266,1755930712426,-595.73,0.00015068,2]
[380996267,1755930712436,-792.12,0.00015068,2]
[380996268,1755930712446,-490.78,0.00015068,2]
[380996269,1755930712456,-400.0,0.00015068,2]
[380996270,1755930712466,-400.0,0.00015068,2]
[380996271,1755930712476,-400.0,0.00015068,2]
[380996272,1755930712485,-664.29,0.00015068,2]
[380996273,1755930712495,-400.0,0.00015068,2]
[380996274,1755930712504,-400.0,0.00015068,2]
[380996275,1755930712514,-603.04,0.00015068,2]
[380996276,1755930712523,-894.08,0.00015068,2]
[380996277,1755930712532,-400.0,0.00015068,2]
[380996278,1755930712542,-419.15,0.00015068,2]
[380996279,1755930712552,-453.48,0.00015068,2]
[380996280,1755930712562,-538.29,0.00015068,2]
[380996281,1755930712571,-1.13819509,0.00015068,2]
[380996282,1755930714743,-666.86194146,0.000137,2]
[380996283,1755930714783,-663.71805854,0.000137,2]
[380996284,1755930714793,-986.28197365,0.000137,2]
[380996285,1755930714805,-344.29802635,0.000137,2]
[380996286,1755930714815,-1330.58,0.000137,2]
[380996287,1755930714824,-1330.58,0.000137,2]
[380996288,1755930714834,-1000.0,0.00013899,2]
[380996289,1755930714844,-29.87767256,0.00014246,2]
[380996290,1755930714856,-558.18232744,0.00014246,2]
[380996291,1755930714866,-588.06,0.0001452,2]
[380996292,1755930714875,-353.79870069,0.00014794,2]
[380996293,1755930714887,-465.9952148,0.00014794,2]
[380996294,1755930714899,-294.28608451,0.00014794,2]
[380996295,1755930714909,-588.06,0.00014794,2]
[380996296,1755930714919,-398.86180491,0.00015068,2]
[380996297,1755930714930,-855.49,0.00015068,2]
[380996298,1755930714940,-400.0,0.00015068,2]
[380996299,1755930714950,-423.93,0.00015068,2]
[380996300,1755930714959,-400.0,0.00015068,2]
[380996301,1755930714968,-509.54,0.00015068,2]
[380996302,1755930714978,-633.58,0.00015068,2]
[380996303,1755930714987,-400.0,0.00015068,2]
[380996304,1755930714996,-275.64016307,0.00015068,2]
[380996305,1755930715013,-124.35983693,0.00015068,2]
[380996306,1755930715023,-400.0,0.00015068,2]
[380996307,1755930715033,-3166.9,0.00015068,2]
[380996308,1755930715042,-400.0,0.00015068,2]
[380996309,1755930715052,-532.83,0.00015068,2]
[380996310,1755930715061,-400.0,0.00015068,2]